bitfinex/quotes_SOLUSD_20240612
["timestamp","ask_amount","ask_price","bid_price","bid_amount"]
[1718204332165,0.17,160.19,160.17,2.3099]
[1718204332359,106.50208924,160.21,160.17,2.3099]
[1718204332559,106.50208924,160.21,160.15,11.5514]
[1718204332759,106.50208924,160.21,160.17,2.3099]
[1718204332959,100.0,160.19,160.16,2.3101]
[1718204333271,0.17,160.18,160.16,2.3101]
[1718204333572,0.34,160.18,160.16,2.3101]
[1718204334577,0.34,160.18,160.15,2.3102]
[1718204336594,0.17,160.16,160.13,2.3105]
[1718204336765,0.34,160.16,160.14,2.3104]
[1718204337170,0.34,160.16,160.15,2.3103]
[1718204337470,100.0,160.16,160.1,22.5705]
[1718204337674,0.17,160.17,160.15,2.3102]
[1718204337850,0.17,160.17,160.16,2.3101]
[1718204338048,100.0,160.18,160.15,2.3102]
[1718204338463,100.0,160.18,160.16,2.3101]
[1718204339469,100.0,160.18,160.14,4.6209]
[1718204339657,0.51,160.19,160.17,2.3099]
[1718204340368,100.51,160.19,160.17,2.31]
[1718204340683,100.51,160.19,160.16,2.3101]
[1718204341061,100.51,160.19,160.15,2.3102]
[1718204341675,100.0,160.17,160.14,2.3104]
[1718204341879,0.17,160.16,160.14,2.3104]
[1718204342078,0.17,160.16,160.15,2.3103]
[1718204342470,0.17,160.16,160.14,2.3104]
[1718204342982,0.17,160.16,160.15,2.3103]
[1718204344286,0.17,160.16,160.14,2.3103]
[1718204344659,100.0,160.15,160.14,2.3103]
[1718204344860,100.0,160.15,160.12,13.8643]
[1718204344861,0.17,160.14,160.12,2.3107]
[1718204345061,0.34,160.14,160.13,2.3106]
[1718204345883,100.0,160.13,160.09,11.5557]
[1718204346063,100.0,160.13,160.11,2.3108]
[1718204346378,0.17,160.12,160.11,2.3108]
[1718204346765,0.17,160.12,160.08,16.1791]
[1718204346766,100.0,160.11,160.1,2.311]
[1718204347084,109.37117082,160.11,160.1,2.311]
[1718204347476,0.17,160.1,160.06,36.1786]
[1718204347676,0.17,160.1,160.07,6.9343]
[1718204347677,9.37263936,160.08,160.07,6.9343]
[1718204348357,9.37326687,160.08,160.06,9.2464]
[1718204348565,100.17,160.09,160.08,2.3113]
[1718204348763,100.34,160.09,160.08,2.3113]
[1718204348970,100.34,160.09,160.06,2.3115]
[1718204349159,0.51,160.08,160.07,2.3114]
[1718204351603,100.0,160.07,160.06,2.3116]
[1718204352186,100.17,160.07,160.06,2.3116]
[1718204352386,100.34,160.07,160.06,2.3116]
[1718204352897,0.17,160.07,160.06,6.9348]
[1718204353086,0.51,160.08,160.07,2.3114]
[1718204354187,100.17,160.07,160.06,2.3115]
[1718204354375,109.7138605,160.07,160.06,2.3115]
[1718204356617,100.0,160.05,160.04,2.3118]
[1718204356776,109.71399786,160.05,160.04,2.3119]
[1718204357176,0.17,160.04,160.03,2.312]
[1718204357381,100.17,160.03,160.02,2.312]
[1718204357582,100.17,160.03,159.93,13.8728]
[1718204357583,0.17,160.02,160.01,2.3123]
[1718204357801,9.88676146,160.02,160.01,2.3123]
[1718204358097,9.71676146,160.02,160.01,2.3123]
[1718204358996,9.37676146,160.03,160.02,2.3122]
[1718204359189,9.37676146,160.03,160.02,23.122]
[1718204359500,9.37676146,160.04,160.03,2.312]
[1718204359694,9.37676146,160.04,160.03,23.1204]
[1718204359995,9.37676146,160.04,160.03,30.6204]
[1718204360374,109.37676146,160.05,160.04,2.3119]
[1718204360571,109.3756091,160.05,160.03,2.312]
[1718204361289,109.3756091,160.05,160.02,9.8121]
[1718204361485,100.0,160.03,160.01,2.3122]
[1718204361692,100.0,160.03,160.02,2.3122]
[1718204361879,100.17,160.03,160.01,2.3122]
[1718204362087,100.17,160.03,160.02,2.3122]
[1718204363290,100.34,160.03,160.02,2.3122]
[1718204363497,109.88631674,160.03,160.02,2.3122]
[1718204364180,9.71631674,160.03,160.02,14.4366]
[1718204364412,0.17,160.03,160.02,14.4366]
[1718204364912,100.17,160.03,160.02,2.3122]
[1718204365206,107.84,160.03,160.01,2.3123]
[1718204365375,107.84,160.03,160.02,2.3122]
[1718204365779,108.01,160.03,160.02,2.3122]
[1718204366795,0.17,160.02,160.01,2.3123]
[1718204367003,7.84,160.02,160.01,2.3123]
[1718204367788,7.5,160.02,160.01,6.937]
[1718204368910,7.5,160.02,160.01,2.3123]
[1718204369279,7.84,160.02,160.0,2.3124]
[1718204369682,0.17,160.01,160.0,2.3124]
[1718204369901,108.01,160.01,160.0,2.3125]
[1718204370091,107.67,160.01,160.0,2.3125]
[1718204370292,107.84,160.01,160.0,2.3125]
[1718204370498,107.84,160.01,159.99,18.501]
[1718204370499,0.17,160.01,159.99,18.501]
[1718204370714,9.37631674,160.04,160.03,23.1204]
[1718204371225,9.37631674,160.08,160.07,6.9343]
[1718204371522,9.37631674,160.08,160.07,2.3114]
[1718204371523,16.87631674,160.08,160.07,2.3114]
[1718204371884,7.5,160.08,160.07,2.3114]
[1718204374313,100.0,160.06,160.04,2.3118]
[1718204374512,100.17,160.06,160.05,2.3117]
[1718204374719,7.84,160.06,160.05,2.3117]
[1718204375308,100.0,160.08,160.07,2.3114]
[1718204375509,107.67,160.08,160.06,2.3115]
[1718204375693,109.71371169,160.08,160.07,2.3114]
[1718204375892,107.67,160.08,160.07,2.3114]
[1718204377393,9.37371169,160.08,160.07,9.2458]
[1718204377707,9.37371169,160.12,160.11,2.3109]
[1718204378120,7.5,160.13,160.12,2.3107]
[1718204378121,16.87371169,160.13,160.12,2.3107]
[1718204378312,7.5,160.13,160.12,2.3107]
[1718204378503,16.87183284,160.13,160.12,2.3107]
[1718204378703,7.5,160.13,160.12,2.3107]
[1718204379500,16.87183284,160.13,160.12,2.3107]
[1718204380025,9.37183284,160.13,160.12,2.3107]
[1718204380319,16.87183284,160.13,160.12,2.3107]
[1718204380698,9.37183284,160.13,160.12,2.3107]
[1718204381113,9.37183284,160.13,160.12,6.9322]
[1718204381298,7.5,160.14,160.13,2.3106]
[1718204381509,9.37092391,160.14,160.13,13.8636]
[1718204381705,9.37092391,160.14,160.13,2.3106]
[1718204382705,16.87092391,160.15,160.14,2.3104]
[1718204387023,7.5,160.15,160.14,2.3103]
[1718204387333,7.5,160.15,160.13,2.3105]
[1718204387511,7.5,160.14,160.11,4.6217]
[1718204387708,7.5,160.13,160.12,2.3107]
[1718204388827,100.17,160.16,160.15,2.3103]
[1718204389022,108.01,160.16,160.15,2.3103]
[1718204390525,100.51,160.16,160.15,2.3103]
[1718204390768,108.01,160.16,160.14,2.3103]
[1718204390916,100.51,160.16,160.15,2.3103]
[1718204391111,108.01,160.16,160.15,2.3103]
[1718204391520,0.17,160.15,160.14,2.3104]
[1718204391717,8.01,160.15,160.14,2.3104]
[1718204393109,100.17,160.14,160.1,4.6218]
[1718204393430,100.17,160.14,160.13,2.3106]
[1718204393628,108.01,160.14,160.1,4.6218]
[1718204393828,108.01,160.14,160.1,2.311]
[1718204393829,7.5,160.11,160.1,2.311]
[1718204394213,7.84,160.11,160.1,2.311]
[1718204394414,8.01,160.11,160.1,2.311]
[1718204395725,100.17,160.1,160.06,13.8693]
[1718204395922,100.0,160.1,160.09,2.3111]
[1718204396115,107.5,160.1,160.09,2.3111]
[1718204396317,100.0,160.08,160.04,4.6236]
[1718204396737,7.5,160.05,160.04,2.3119]
[1718204396936,7.5,160.05,160.04,6.9357]
[1718204397329,7.5,160.05,160.04,2.3119]
[1718204399640,7.84,160.05,160.04,2.3119]
[1718204399839,8.01,160.05,160.04,2.3119]
[1718204400240,0.17,160.05,160.04,6.9357]
[1718204400550,107.67,160.05,160.04,2.3119]
[1718204400747,108.01,160.05,160.04,2.3119]
[1718204400918,107.84,160.05,160.04,2.3119]
[1718204401123,108.01,160.05,160.04,2.3119]
[1718204403138,100.51,160.05,160.04,2.3119]
[1718204403345,108.01,160.05,160.04,2.3119]
[1718204403548,107.84,160.05,160.04,2.3119]
[1718204403743,100.17,160.03,160.02,2.3122]
[1718204403948,108.01,160.03,160.0,6.9373]
[1718204404239,100.51,160.03,160.02,6.9366]
[1718204404463,108.01,160.03,160.02,13.8732]
[1718204404620,108.01,160.03,160.02,6.9366]
[1718204404938,108.01,160.03,160.0,13.8744]
[1718204405126,108.01,160.03,160.02,2.3122]
[1718204405531,108.18,160.03,160.0,20.8117]
[1718204405845,7.5,160.01,160.0,23.1242]
[1718204406676,100.0,160.05,160.04,2.3119]
[1718204406833,116.87644654,160.05,160.04,2.3119]
[1718204407345,100.0,160.07,160.06,2.3116]
[1718204407738,107.5,160.07,160.06,2.3116]
[1718204407945,100.0,160.07,160.06,2.3116]
[1718204408153,107.5,160.07,160.06,2.3116]
[1718204408858,7.28667945,160.1,160.05,4.6234]
[1718204408859,104.97567945,160.1,160.05,4.6234]
[1718204409194,100.0,160.08,160.07,2.3114]
[1718204409345,100.0,160.11,160.06,16.1811]
[1718204409541,100.0,160.13,160.07,9.2456]
[1718204409859,100.0,160.11,160.1,2.311]
[1718204410361,100.0,160.09,160.06,4.623]
[1718204410541,100.0,160.09,160.07,2.3113]
[1718204410853,100.0,160.09,160.01,6.5398]
[1718204410854,100.0,160.01,159.96,6.3319]
[1718204411062,0.17,160.0,159.96,6.3319]
[1718204411239,100.0,159.99,159.98,2.3127]
[1718204411651,100.0,159.99,159.97,2.3128]
[1718204412244,0.17,159.98,159.97,2.3128]
[1718204412658,100.17,159.99,159.98,6.9382]
[1718204412959,100.51,159.99,159.98,6.9382]
[1718204413457,100.0,160.01,160.0,2.3125]
[1718204413667,0.34,160.02,160.01,2.3123]
[1718204413978,0.68,160.02,160.01,2.3123]
[1718204414142,0.17,159.98,159.96,2.3129]
[1718204414337,22.5,160.0,159.98,2.3127]
[1718204414647,22.67,160.0,159.99,2.3126]
[1718204414845,0.34,160.0,159.92,6.663]
[1718204415141,0.51,160.02,159.92,6.663]
[1718204415340,0.51,160.02,160.0,2.3123]
[1718204415882,0.51,160.02,159.99,2.3126]
[1718204416386,0.51,160.02,159.97,4.6257]
[1718204416577,0.51,160.02,159.92,6.663]
[1718204416783,100.0,160.01,159.92,6.663]
[1718204416970,100.0,159.99,159.97,2.3128]
[1718204417469,100.0,159.99,159.97,2.3129]
[1718204417877,100.0,159.99,159.94,11.5666]
[1718204417878,0.17,159.98,159.95,2.3131]
[1718204418069,0.51,159.98,159.95,2.3131]
[1718204418378,100.0,159.97,159.95,2.3131]
[1718204418562,100.0,159.97,159.94,2.3132]
[1718204418966,0.17,159.96,159.93,2.3134]
[1718204419174,0.34,159.96,159.94,2.3132]
[1718204420278,0.34,159.96,159.91,16.4249]
[1718204420279,100.0,159.95,159.91,16.4249]
[1718204420478,100.0,159.95,159.91,2.3136]
[1718204420479,0.17,159.94,159.91,2.3136]
[1718204420779,0.17,159.94,159.91,2.3137]
[1718204420780,100.0,159.93,159.91,2.3137]
[1718204420993,100.0,159.93,159.9,2.3139]
[1718204421183,0.34,159.92,159.9,2.3139]
[1718204421370,0.34,159.92,159.84,13.493]
[1718204421371,100.0,159.91,159.84,13.493]
[1718204421574,100.0,159.91,159.88,2.3141]
[1718204421886,100.0,159.91,159.89,2.314]
[1718204422104,0.34,159.9,159.89,2.314]
[1718204422604,0.17,159.9,159.89,2.3139]
[1718204422891,0.34,159.9,159.89,2.3139]
[1718204423284,0.17,159.88,159.86,2.3143]
[1718204423589,0.34,159.88,159.87,2.3143]
[1718204424096,100.0,159.91,159.89,2.314]
[1718204424270,0.34,159.9,159.89,2.314]
[1718204424461,100.0,159.88,159.84,9.2591]
[1718204424665,100.0,159.88,159.86,2.3143]
[1718204425165,100.0,159.88,159.87,2.3143]
[1718204425380,100.17,159.88,159.87,2.3143]
[1718204425577,100.34,159.88,159.87,2.3143]
[1718204426092,0.17,159.9,159.89,2.314]
[1718204426404,100.17,159.9,159.89,2.314]
[1718204426573,100.34,159.9,159.88,2.3141]
[1718204426897,100.34,159.9,159.83,15.9267]
[1718204426898,100.0,159.88,159.86,2.3144]
[1718204427393,100.0,159.88,159.87,2.3143]
[1718204427595,100.34,159.88,159.86,2.3144]
[1718204427887,100.17,159.88,159.85,2.3146]
[1718204428676,100.17,159.88,159.86,2.3144]
[1718204428988,100.17,159.88,159.87,2.3143]
[1718204429197,100.34,159.88,159.87,2.3143]
[1718204429398,100.34,159.88,159.86,2.3144]
[1718204430373,100.0,159.83,159.78,15.2427]
[1718204430589,122.5,159.83,159.8,2.3153]
[1718204431188,0.34,159.82,159.8,2.3153]
[1718204431409,0.17,159.81,159.8,2.3153]
[1718204432194,100.17,159.81,159.8,2.3153]
[1718204432604,100.51,159.81,159.8,2.3153]
[1718204432775,0.17,159.8,159.78,2.3155]
[1718204432984,0.51,159.8,159.79,2.3155]
[1718204433292,0.51,159.8,159.78,2.3156]
[1718204433490,0.51,159.8,159.79,2.3155]
[1718204434112,0.51,159.8,159.77,4.6316]
[1718204434278,100.0,159.81,159.8,2.3153]
[1718204434472,0.17,159.82,159.81,2.3152]
[1718204434877,0.34,159.84,159.82,2.315]
[1718204435082,0.51,159.83,159.82,2.315]
[1718204435508,100.0,159.85,159.74,15.5606]
[1718204435831,100.0,159.87,159.86,2.3145]
[1718204435979,22.5,159.9,159.89,2.314]
[1718204436599,100.0,159.92,159.9,2.3139]
[1718204436777,100.0,159.92,159.87,11.5716]
[1718204436778,100.0,159.92,159.91,2.3138]
[1718204436973,22.5,159.93,159.92,2.3136]
[1718204437175,22.5,159.93,159.91,2.3137]
[1718204437395,100.0,159.92,159.91,2.3137]
[1718204437606,6.50142291,159.94,159.92,2.3136]
[1718204438002,6.50142291,159.94,159.93,2.3135]
[1718204438188,22.5,159.96,159.94,2.3133]
[1718204438389,122.5,159.96,159.93,2.3134]
[1718204439004,102.3134,159.94,159.89,2.3139]
[1718204439190,102.3134,159.94,159.88,6.375]
[1718204439392,102.3134,159.94,159.9,2.3139]
[1718204439596,102.3134,159.94,159.88,6.375]
[1718204439597,100.0,159.94,159.91,2.3137]
[1718204440022,100.0,159.94,159.92,2.3136]
[1718204440315,24.8131,159.96,159.92,2.3135]
[1718204440316,122.5,159.96,159.92,2.3135]
[1718204440517,100.0,160.0,159.89,16.1791]
[1718204440810,122.5,160.0,159.96,2.313]
[1718204441189,124.8125,160.0,159.96,2.313]
[1718204441386,122.5,160.0,159.97,2.3129]
[1718204441588,124.8125,160.0,159.96,2.313]
[1718204441821,122.5,160.0,159.96,2.313]
[1718204442128,100.0,159.98,159.92,20.8223]
[1718204442329,102.3127,159.98,159.94,2.3133]
[1718204442688,100.0,159.96,159.94,2.3133]
[1718204443098,100.0,159.96,159.89,25.4349]
[1718204443099,100.0,159.96,159.89,27.7493]
[1718204443413,122.67,159.97,159.94,2.3132]
[1718204443614,0.68,159.96,159.93,2.3134]
[1718204443789,100.0,159.95,159.93,2.3134]
[1718204443982,100.0,159.95,159.94,2.3133]
[1718204444219,0.17,159.96,159.95,2.3132]
[1718204444394,100.0,159.97,159.93,11.5673]
[1718204444601,100.17,159.97,159.96,2.313]
[1718204444915,0.34,159.97,159.93,4.6269]
[1718204445114,22.67,159.98,159.93,4.6269]
[1718204445295,100.0,159.97,159.94,2.3132]
[1718204445497,100.0,159.97,159.95,2.3132]
[1718204446107,100.0,159.97,159.91,4.6274]
[1718204446309,100.0,159.95,159.93,2.3134]
[1718204446609,100.0,159.95,159.94,2.3133]
[1718204447117,100.0,159.95,159.93,2.3134]
[1718204447304,100.0,159.95,159.89,37.0048]
[1718204447508,0.17,159.94,159.91,2.3137]
[1718204448007,22.67,159.94,159.91,2.3137]
[1718204448203,100.0,159.92,159.9,2.3138]
[1718204448412,100.0,159.92,159.9,2.3139]
[1718204448999,0.17,159.91,159.86,6.9433]
[1718204449272,100.0,159.9,159.85,26.9508]
[1718204449408,100.0,159.9,159.88,2.3141]
[1718204450315,0.34,159.89,159.88,2.3141]
[1718204453145,100.17,159.88,159.87,2.3143]
[1718204453319,0.17,159.88,159.87,2.3143]
[1718204453654,0.51,159.89,159.87,2.3142]
[1718204453655,0.17,159.89,159.87,2.3142]
[1718204453942,0.68,159.89,159.88,2.3142]
[1718204454129,0.34,159.89,159.88,2.3142]
[1718204456442,6.50387396,159.9,159.89,9.2562]
[1718204456630,5.12739708,159.95,159.91,2.3138]
[1718204456631,22.67,159.93,159.91,2.3138]
[1718204456823,22.5,159.93,159.92,2.3136]
[1718204458330,22.5,159.93,159.91,2.3138]
[1718204458631,22.5,159.93,159.9,2.3138]
[1718204458935,22.5,159.93,159.91,2.3137]
[1718204459333,22.5,159.93,159.87,9.2573]
[1718204459334,0.34,159.92,159.87,9.2573]
[1718204459533,0.34,159.92,159.9,2.3138]
[1718204459739,100.34,159.92,159.89,2.314]
[1718204460325,0.34,159.92,159.9,2.3138]
[1718204460679,100.34,159.92,159.9,2.3138]
[1718204461631,100.34,159.92,159.89,2.314]
[1718204461947,0.17,159.89,159.88,2.3142]
[1718204462145,100.0,159.9,159.88,2.3142]
[1718204462336,0.17,159.91,159.89,2.314]
[1718204462936,100.0,159.9,159.88,2.3141]
[1718204463360,100.0,159.9,159.87,2.3143]
[1718204464258,100.0,159.9,159.81,22.4939]
[1718204464442,0.34,159.91,159.9,2.3139]
[1718204464626,100.0,159.92,159.91,2.3138]
[1718204464827,100.0,159.99,159.98,2.3127]
[1718204465034,22.5,160.0,159.89,15.306]
[1718204465239,122.5,160.03,159.99,2.3126]
[1718204465544,100.0,160.01,159.99,2.3126]
[1718204465762,100.0,160.01,159.95,13.8787]
[1718204465938,6.50311825,160.02,160.0,2.3124]
[1718204466135,6.50311825,160.02,160.01,2.3123]
[1718204466336,100.0,160.05,160.0,2.3124]
[1718204466545,6.50161142,160.04,159.98,4.6255]
[1718204466948,6.50161142,160.04,160.01,2.3122]
[1718204467253,6.50161142,160.04,160.02,2.3121]
[1718204467455,100.0,160.02,159.99,2.3125]
[1718204467656,100.0,160.02,159.98,2.3126]
[1718204467948,100.0,160.0,159.93,30.1822]
[1718204468164,100.0,160.02,159.98,2.3127]
[1718204468535,100.0,160.0,159.97,2.3128]
[1718204468732,100.0,159.98,159.94,2.3133]
[1718204468943,0.51,159.99,159.96,2.3129]
[1718204469151,122.5,160.0,159.93,11.5672]
[1718204469454,0.17,160.03,160.0,2.3125]
[1718204469643,106.50161142,160.04,160.01,2.3122]
[1718204469949,106.50161142,160.04,160.0,2.3124]
[1718204470151,6.50161142,160.04,160.02,2.3121]
[1718204470339,100.0,160.04,160.0,2.3123]
[1718204470544,100.0,160.02,159.98,2.3127]
[1718204470945,0.17,160.03,159.98,4.6255]
[1718204471253,100.0,160.02,159.96,13.878]
[1718204471562,100.0,160.02,160.0,2.3124]
[1718204471777,0.34,160.03,159.96,6.9391]
[1718204471947,100.0,160.04,160.01,2.3123]
[1718204472152,100.0,160.02,159.97,4.6258]
[1718204472347,0.68,160.03,160.0,2.3124]
[1718204472348,0.34,160.03,160.0,2.3124]
[1718204472562,0.17,160.03,160.01,2.3123]
[1718204472763,100.0,160.04,160.01,2.3123]
[1718204473269,100.0,160.04,160.0,2.3124]
[1718204473468,100.0,160.04,160.01,2.3123]
[1718204474556,100.0,160.04,160.0,2.3124]
[1718204474756,102.3119,160.04,159.96,20.817]
[1718204475055,102.3119,160.04,159.99,2.3125]
[1718204475245,102.3119,160.04,159.96,20.817]
[1718204475246,100.0,160.02,159.98,2.3127]
[1718204475444,100.0,160.02,159.94,6.9397]
[1718204475445,2.4828,159.98,159.94,2.3133]
[1718204475658,22.5,159.99,159.84,10.0]
[1718204475962,22.5,159.99,159.97,2.3128]
[1718204476163,122.5,159.99,159.96,2.313]
[1718204476459,2.3132,159.95,159.91,2.3137]
[1718204476769,0.17,159.97,159.94,2.3132]
[1718204476960,0.17,159.98,159.82,16.72013051]
[1718204477268,122.5,159.99,159.96,2.313]
[1718204477461,100.0,159.99,159.98,2.3127]
[1718204477760,0.17,160.01,160.0,2.3125]
[1718204478058,0.17,160.02,160.0,2.3125]
[1718204478361,2.4822,160.02,159.97,2.3127]
[1718204478548,2.4822,160.02,159.98,2.3127]
[1718204478549,0.17,160.02,159.98,2.3127]
[1718204479066,2.4822,160.02,159.97,2.3128]
[1718204479447,2.4822,160.02,159.98,2.3127]
[1718204479651,2.4822,160.02,159.95,4.6263]
[1718204479652,0.17,160.01,159.96,4.626]
[1718204479846,0.34,160.02,159.97,4.6257]
[1718204480049,0.51,160.02,159.99,2.3125]
[1718204481253,22.5,160.04,160.01,2.3122]
[1718204481455,22.5,160.04,160.02,2.3121]
[1718204481649,0.17,160.05,160.0,6.9373]
[1718204481854,131.31389049,160.07,160.02,2.3121]
[1718204482163,2.3116,160.06,160.02,2.3121]
[1718204482359,100.0,160.05,160.01,2.3122]
[1718204482569,2.3119,160.04,159.99,2.3126]
[1718204482769,0.17,160.02,159.98,2.3127]
[1718204482940,0.17,160.02,159.99,2.3125]
[1718204483642,2.4822,160.02,159.98,2.3127]
[1718204483864,2.3123,160.01,159.97,2.3128]
[1718204484065,2.3123,160.01,159.94,4.6265]
[1718204484066,0.34,160.0,159.94,4.6265]
[1718204484246,2.6525,160.0,159.96,2.3129]
[1718204484449,100.0,159.99,159.95,2.3131]
[1718204485178,0.17,159.98,159.94,2.3133]
[1718204485351,23.01,159.98,159.94,2.3133]
[1718204485659,22.67,159.98,159.94,2.3133]
[1718204485970,24.9827,159.98,159.94,2.3133]
[1718204486157,22.67,159.98,159.94,2.3133]
[1718204486868,22.67,159.98,159.95,2.3131]
[1718204487065,22.67,159.98,159.96,2.313]
[1718204487469,22.67,159.98,159.93,4.6269]
[1718204487470,22.67,159.98,159.95,2.3131]
[1718204487691,22.67,159.98,159.94,2.3132]
[1718204488260,22.67,159.98,159.95,2.3132]
[1718204488454,22.67,159.98,159.94,2.3132]
[1718204488666,22.67,159.98,159.95,2.3131]
[1718204489675,100.0,159.96,159.91,6.9413]
[1718204489875,0.17,159.95,159.92,2.3135]
[1718204490173,0.34,159.95,159.89,22.5778]
[1718204490360,0.34,159.95,159.93,2.3134]
[1718204490570,0.34,159.95,159.9,4.6278]
[1718204490751,0.17,159.95,159.93,2.3134]
[1718204490951,100.0,159.96,159.94,2.3133]
[1718204491177,0.17,159.97,159.89,22.5778]
[1718204491354,22.5,159.98,159.89,22.5778]
[1718204491355,0.17,159.98,159.89,22.5778]
[1718204491556,0.51,159.98,159.96,2.313]
[1718204491985,100.0,160.0,159.89,22.5778]
[1718204492279,122.5,160.0,159.97,2.3128]
[1718204492478,2.3126,159.99,159.94,4.6265]
[1718204492691,2.3126,159.99,159.95,2.3131]
[1718204492904,129.02286001,160.0,159.97,2.3129]
[1718204493183,122.5,160.0,159.97,2.3129]
[1718204493388,122.5,160.0,159.98,2.3127]
[1718204493872,22.5,160.0,159.98,2.3127]
[1718204495584,22.5,160.0,159.99,2.3126]
[1718204495968,22.5,160.0,159.98,2.3127]
[1718204496472,22.5,160.0,159.97,2.3128]
[1718204496666,22.5,160.0,159.89,22.5778]
[1718204496667,102.3127,159.99,159.95,2.3131]
[1718204496870,100.0,159.99,159.96,2.313]
[1718204497662,22.5,160.0,159.97,2.3129]
[1718204497884,22.5,160.0,159.98,2.3127]
[1718204498183,22.5,160.0,159.89,22.5778]
[1718204498361,22.5,160.0,159.99,2.3126]
[1718204500688,100.0,160.03,160.01,2.3122]
[1718204500689,22.5,160.03,160.01,2.3122]
[1718204502780,22.5,160.03,160.02,2.3122]
[1718204504697,22.5,160.03,160.01,2.3122]
[1718204505380,22.5,160.03,159.99,13.72]
[1718204505566,24.8121,160.03,159.99,16.0325]
[1718204507086,2.3122,160.02,159.99,13.72]
[1718204508273,124.8121,160.03,159.99,16.0326]
[1718204508792,122.5,160.03,160.0,2.3124]
[1718204509092,122.5,160.03,160.01,2.3123]
[1718204509385,22.5,160.03,160.01,2.3123]
[1718204510383,22.5,160.03,160.02,2.3122]
[1718204510593,100.0,160.01,159.99,13.72]
[1718204510809,0.17,160.02,159.99,13.72]
[1718204510991,22.67,160.03,159.99,16.0326]
[1718204511366,22.67,160.03,160.0,2.3124]
[1718204512010,22.67,160.03,159.99,16.0325]
[1718204512293,22.67,160.03,160.0,2.3124]
[1718204513516,22.67,160.03,159.99,16.0325]
[1718204514494,22.67,160.03,160.0,2.3124]
[1718204514702,22.5,160.03,159.99,16.0325]
[1718204515199,22.5,160.03,160.0,2.3124]
[1718204516701,24.812,160.03,159.99,16.0325]
[1718204518398,22.5,160.03,159.99,16.0325]
[1718204519095,22.5,160.03,160.0,2.3124]
[1718204519896,100.0,160.02,159.99,13.72]
[1718204520199,122.5,160.0,159.99,13.72]
[1718204520389,125.3225,160.0,159.99,13.72]
[1718204520700,2.3128,159.98,159.94,2.3132]
[1718204520875,22.5,159.97,159.95,2.3132]
[1718204521077,22.5,159.97,159.94,2.3133]
[1718204521273,22.5,159.97,159.95,2.3132]
[1718204521895,22.5,159.97,159.96,2.313]
[1718204522601,22.5,159.97,159.92,22.0522]
[1718204523003,22.5,159.97,159.94,2.3132]
[1718204523601,22.5,159.97,159.95,2.3131]
[1718204523778,102.8231,159.96,159.88,23.1096]